bitfinex-derivatives/quotes_BTCF0:USTF0_20250724
["timestamp","ask_amount","ask_price","bid_price","bid_amount"]
[1753353237899,2.32386839,118130.0,118120.0,0.6974001]
[1753353238091,2.32386839,118130.0,118120.0,0.9103266]
[1753353238291,2.11094189,118130.0,118120.0,0.9103266]
[1753353238493,1.71286839,118130.0,118120.0,0.9564666]
[1753353238693,2.32374839,118130.0,118120.0,0.9564666]
[1753353239100,2.32370839,118130.0,118120.0,0.9564666]
[1753353239602,2.32370839,118130.0,118120.0,0.7435401]
[1753353239802,2.32370839,118130.0,118120.0,0.9564666]
[1753353240197,2.32370839,118130.0,118120.0,0.7435401]
[1753353240403,2.32370839,118130.0,118120.0,0.9564666]
[1753353241501,2.32362839,118130.0,118120.0,0.9564666]
[1753353242706,2.32362839,118130.0,118120.0,0.9103266]
[1753353243108,2.11070189,118130.0,118120.0,0.9103266]
[1753353243406,2.32362839,118130.0,118120.0,0.7435401]
[1753353243999,2.32362839,118130.0,118120.0,0.6974001]
[1753353244507,2.32362839,118130.0,118120.0,0.9103266]
[1753353244906,1.54365659,118130.0,118120.0,0.9564666]
[1753353245200,2.32354849,118130.0,118120.0,0.9564666]
[1753353246207,1.71286849,118130.0,118120.0,0.9564666]
[1753353246402,2.32350849,118130.0,118120.0,0.7435401]
[1753353246617,2.32346849,118130.0,118120.0,0.9564666]
[1753353247411,2.11054199,118130.0,118120.0,0.9564666]
[1753353247615,2.32342849,118130.0,118120.0,0.9564666]
[1753353248210,2.32342849,118130.0,118120.0,0.7435401]
[1753353248416,2.32342849,118130.0,118120.0,0.9564666]
[1753353248911,2.32342849,118130.0,118120.0,0.3739901]
[1753353252116,2.32330849,118130.0,118120.0,0.3739901]
[1753353252814,2.36861509,118130.0,118120.0,0.3739901]
[1753353257619,2.15568859,118130.0,118120.0,0.3739901]
[1753353257822,2.36861509,118130.0,118120.0,0.3739901]
[1753353258522,2.15568859,118130.0,118120.0,0.3739901]
[1753353258713,1.75817509,118130.0,118120.0,0.5869166]
[1753353258921,2.36837509,118130.0,118120.0,0.3739901]
[1753353259219,1.75817509,118130.0,118120.0,0.5869166]
[1753353259418,2.36837509,118130.0,118120.0,0.5869166]
[1753353260120,2.36837509,118130.0,118120.0,0.7667166]
[1753353260321,2.15544859,118130.0,118120.0,0.7667166]
[1753353260519,2.36837509,118130.0,118120.0,0.7667166]
[1753353261522,2.36837509,118130.0,118120.0,0.6931266]
[1753353261724,2.15544859,118130.0,118120.0,0.5869166]
[1753353261917,2.36837509,118130.0,118120.0,0.3739901]
[1753353262319,2.15544859,118130.0,118120.0,0.3739901]
[1753353262519,2.36837509,118130.0,118120.0,0.3739901]
[1753353264024,2.15544859,118130.0,118120.0,0.3739901]
[1753353264226,2.36821509,118130.0,118120.0,0.3739901]
[1753353264827,1.75817509,118130.0,118120.0,0.3739901]
[1753353265020,2.36817509,118130.0,118120.0,0.3739901]
[1753353265728,2.32286849,118130.0,118120.0,0.3739901]
[1753353266021,2.32282849,118130.0,118120.0,0.3739901]
[1753353267031,2.32278849,118130.0,118120.0,0.3739901]
[1753353267622,2.32274849,118130.0,118120.0,0.3739901]
[1753353268527,1.96194849,118130.0,118120.0,0.3739901]
[1753353268730,2.89647499,118130.0,118120.0,0.001]
[1753353269031,2.94178159,118130.0,118120.0,0.001]
[1753353269231,2.72885509,118130.0,118120.0,0.001]
[1753353269736,2.51592859,118130.0,118120.0,0.001]
[1753353269939,2.72885509,118130.0,118120.0,0.001]
[1753353271729,2.68354849,118130.0,118120.0,0.001]
[1753353273935,2.6651348,118130.0,118120.0,0.001]
[1753353274147,2.68363916,118130.0,118120.0,0.001]
[1753353275140,2.89656566,118130.0,118120.0,0.001]
[1753353275346,2.94187226,118130.0,118120.0,0.001]
[1753353275732,2.72894576,118130.0,118120.0,0.001]
[1753353276536,4.11287226,118130.0,118120.0,0.001]
[1753353277142,4.11287226,118130.0,118120.0,0.3739901]
[1753353279039,4.11287226,118130.0,118120.0,0.001]
[1753353279642,3.89994576,118130.0,118120.0,0.001]
[1753353279846,3.29006576,118130.0,118120.0,0.001]
[1753353280041,3.89950576,118130.0,118120.0,0.001]
[1753353280639,3.91464508,118130.0,118120.0,0.001]
[1753353281739,3.85419916,118130.0,118120.0,0.001]
[1753353282138,4.06712566,118130.0,118120.0,0.001]
[1753353282439,3.50316203,118130.0,118120.0,0.001]
[1753353282641,4.11248203,118130.0,118120.0,0.001]
[1753353283248,4.11248203,118130.0,118120.0,0.3739901]
[1753353284245,4.06700566,118130.0,118120.0,0.3739901]
[1753353285943,4.06700566,118130.0,118110.0,0.00088576]
[1753353285944,0.2115553,118110.0,118100.0,0.17298]
[1753353286148,2.13934616,118110.0,118100.0,0.22232]
[1753353286343,2.2663553,118110.0,118100.0,0.5953101]
[1753353286545,0.1692561,118100.0,118090.0,0.22047]
[1753353286736,2.29997346,118100.0,118090.0,0.37002]
[1753353286941,2.42649318,118100.0,118090.0,0.6955201]
[1753353287853,2.00064018,118100.0,118090.0,0.6955201]
[1753353288044,2.21356668,118100.0,118090.0,0.9084466]
[1753353288348,2.42649318,118100.0,118090.0,0.6955201]
[1753353288547,2.21356668,118100.0,118090.0,0.9094466]
[1753353288947,2.28157443,118100.0,118090.0,0.9094466]
[1753353290145,2.42147143,118100.0,118090.0,0.9094466]
[1753353290642,2.20854493,118100.0,118090.0,0.9094466]
[1753353290841,2.42147143,118100.0,118090.0,0.9569366]
[1753353291045,2.42247143,118100.0,118090.0,0.9589366]
[1753353291645,2.20954493,118100.0,118090.0,0.9589366]
[1753353291848,2.42247143,118100.0,118090.0,0.9589366]
[1753353293153,2.20954493,118100.0,118090.0,0.9589366]
[1753353293346,2.42247143,118100.0,118090.0,0.9589366]
[1753353293954,2.20954493,118100.0,118090.0,0.9589366]
[1753353294155,2.42247143,118100.0,118090.0,0.9589366]
[1753353294754,2.63539793,118100.0,118090.0,0.003]
[1753353295356,2.20954493,118100.0,118090.0,0.003]
[1753353295553,2.63539793,118100.0,118090.0,0.003]
[1753353297144,2.49364584,118100.0,118090.0,0.003]
[1753353299855,2.20954493,118100.0,118090.0,0.003]
[1753353300256,2.49364584,118100.0,118090.0,0.003]
[1753353301051,2.20954493,118100.0,118090.0,0.003]
[1753353301450,2.49364584,118100.0,118090.0,0.003]
[1753353306062,1.88444584,118100.0,118090.0,0.003]
[1753353306459,2.49296584,118100.0,118090.0,0.003]
[1753353306853,2.49292584,118100.0,118090.0,0.003]
[1753353307959,1.88444584,118100.0,118090.0,0.003]
[1753353308154,2.49288584,118100.0,118090.0,0.003]
[1753353309158,1.88444584,118100.0,118090.0,0.003]
[1753353309457,2.20874493,118100.0,118090.0,1.02724101]
[1753353309658,2.20874493,118100.0,118090.0,0.7431401]
[1753353310562,1.60034493,118100.0,118090.0,0.7431401]
[1753353310758,2.20874493,118100.0,118090.0,0.7431401]
[1753353311665,2.20874493,118100.0,118090.0,1.19651161]
[1753353311666,1.85089883,118100.0,118090.0,1.19651161]
[1753353312466,1.24257883,118100.0,118090.0,1.19651161]
[1753353312760,1.31460513,118100.0,118090.0,1.19651161]
[1753353312962,0.78454883,118100.0,118090.0,1.19651161]
[1753353313161,1.29366447,118100.0,118090.0,1.55731161]
[1753353313566,1.34347447,118100.0,118090.0,1.55731161]
[1753353313758,1.51273077,118100.0,118090.0,1.55731161]
[1753353314162,0.93723077,118100.0,118090.0,1.55731161]
[1753353314563,1.54543077,118100.0,118090.0,1.55731161]
[1753353315165,1.51269077,118100.0,118090.0,1.55731161]
[1753353315363,1.46280077,118100.0,118090.0,1.55731161]
[1753353315664,1.60877077,118100.0,118090.0,1.55731161]
[1753353317061,1.67870077,118100.0,118090.0,0.9097801]
[1753353317263,2.32360168,118100.0,118090.0,0.7431401]
[1753353317866,2.03950077,118100.0,118090.0,0.7431401]
[1753353318060,1.43138077,118100.0,118090.0,0.7431401]
[1753353318262,2.03942077,118100.0,118090.0,0.7431401]
[1753353318568,2.03942077,118100.0,118090.0,0.9124112]
[1753353319269,2.32352168,118100.0,118090.0,0.5452612]
[1753353319567,2.34225118,118100.0,118090.0,0.003]
[1753353324074,2.05815027,118100.0,118090.0,0.003]
[1753353324280,1.73421118,118100.0,118090.0,0.003]
[1753353324478,2.34197118,118100.0,118090.0,0.003]
[1753353324780,2.05787027,118100.0,118090.0,0.003]
[1753353325077,2.34197118,118100.0,118090.0,0.003]
[1753353325682,2.34193118,118100.0,118090.0,0.003]
[1753353326581,2.34193118,118100.0,118090.0,0.002]
[1753353326785,0.2643697,118070.0,118060.0,0.1996849]
[1753353326986,2.14518061,118070.0,118060.0,0.3021449]
[1753353327177,2.14518061,118070.0,118060.0,0.675135]
[1753353327383,1.38099481,118070.0,118060.0,0.675135]
[1753353327583,1.98867481,118070.0,118060.0,0.675135]
[1753353327883,1.98867481,118070.0,118060.0,0.678135]
[1753353328880,1.38099481,118070.0,118060.0,0.750725]
[1753353329184,1.98863481,118070.0,118060.0,1.03982591]
[1753353329386,1.98963481,118070.0,118060.0,1.03982591]
[1753353329589,2.00835449,118070.0,118060.0,1.03982591]
[1753353329888,2.01686944,118070.0,118060.0,1.03982591]
[1753353330090,1.40922944,118070.0,118060.0,0.755725]
[1753353330289,2.15576644,118070.0,118060.0,1.03382591]
[1753353330476,1.54912644,118070.0,118060.0,1.03682591]
[1753353330682,0.94417674,118070.0,118060.0,1.56693991]
[1753353330883,0.64721179,118070.0,118060.0,1.73633991]
[1753353331181,1.12721668,118070.0,118060.0,1.73633991]
[1753353331384,0.51961668,118070.0,118060.0,1.73633991]
[1753353331586,1.108497,118070.0,118060.0,1.98633991]
[1753353331786,1.12721401,118070.0,118060.0,1.98633991]
[1753353332190,1.108497,118070.0,118060.0,1.73633991]
[1753353332689,1.2777967,118070.0,118060.0,1.73633991]
[1753353334186,1.3238367,118070.0,118060.0,1.73633991]
[1753353334494,1.5661667,118070.0,118060.0,1.56693991]
[1753353335490,0.9586467,118070.0,118060.0,1.56693991]
[1753353335690,1.5661267,118070.0,118060.0,1.56693991]
[1753353335992,1.5660867,118070.0,118060.0,1.56693991]
[1753353336191,1.5660867,118070.0,118060.0,1.282839]
[1753353336391,1.5660867,118070.0,118060.0,1.56693991]
[1753353337394,1.396787,118070.0,118060.0,1.56693991]
[1753353338192,1.296957,118070.0,118060.0,1.56693991]
[1753353338784,1.296957,118070.0,118060.0,1.282839]
[1753353339296,1.296957,118070.0,118060.0,1.56693991]
[1753353339492,1.396787,118070.0,118060.0,1.56693991]
[1753353339694,1.249447,118070.0,118060.0,1.56693991]
[1753353340497,0.0316831,118070.0,118060.0,1.99633991]
[1753353340691,0.21387775,118100.0,118090.0,0.290241]
[1753353340995,0.14587,118110.0,118100.0,0.4171627]
[1753353341191,0.45587,118110.0,118100.0,1.02975051]
[1753353341395,0.59845,118110.0,118100.0,1.40274061]
[1753353341796,1.20569,118110.0,118100.0,1.40274061]
[1753353342193,0.59845,118110.0,118100.0,1.40274061]
[1753353342393,1.20561,118110.0,118100.0,1.40274061]
[1753353343394,1.20561,118110.0,118100.0,1.39274061]
[1753353343597,1.28346,118110.0,118100.0,1.03294061]
[1753353343790,1.447727,118110.0,118100.0,1.03294061]
[1753353343990,1.447727,118110.0,118100.0,0.7488397]
[1753353344195,1.447727,118110.0,118100.0,1.03294061]
[1753353344492,2.10260487,118110.0,118100.0,0.07359]
[1753353344686,2.10260487,118110.0,118100.0,0.001]
[1753353345092,2.10260487,118110.0,118100.0,0.1702567]
[1753353345495,2.10260487,118110.0,118100.0,0.001]
[1753353345902,2.38670578,118110.0,118100.0,0.001]
[1753353346090,2.10260487,118110.0,118100.0,0.001]
[1753353346294,2.38670578,118110.0,118100.0,0.001]
[1753353346799,2.10260487,118110.0,118100.0,0.001]
[1753353347602,2.12140183,118110.0,118100.0,0.001]
[1753353350805,2.12140183,118110.0,118100.0,0.07359]
[1753353350998,2.12140183,118110.0,118100.0,0.12197]
[1753353351496,2.12140183,118110.0,118100.0,0.001]
[1753353351702,0.3541514,118100.0,118090.0,0.28410091]
[1753353351903,1.0349514,118100.0,118090.0,0.65709101]
[1753353352103,1.0772661,118100.0,118090.0,0.3729901]
[1753353352300,1.2979861,118100.0,118090.0,0.3729901]
[1753353352501,0.532571,118090.0,118080.0,0.33408091]
[1753353352707,1.479371,118090.0,118080.0,0.04998]
[1753353352902,1.479371,118090.0,118080.0,0.70707101]
[1753353353201,1.479371,118090.0,118080.0,0.77966101]
[1753353353402,0.58094,118090.0,118080.0,0.94894641]
[1753353353609,0.51608,118090.0,118080.0,1.59484732]
[1753353353802,1.09263,118090.0,118080.0,1.59484732]
[1753353354004,1.09263,118090.0,118080.0,1.76421532]
[1753353354403,0.75263,118090.0,118080.0,1.76421532]
[1753353354603,1.12263,118090.0,118080.0,1.59684732]
[1753353354908,1.12363,118090.0,118080.0,1.59984732]
[1753353355301,1.457168,118090.0,118080.0,1.59984732]
[1753353355595,1.457168,118090.0,118080.0,1.59784732]
[1753353355596,1.487338,118090.0,118080.0,1.59784732]
[1753353355798,1.487338,118090.0,118080.0,1.14446101]
[1753353355998,1.487338,118090.0,118080.0,1.31374641]
[1753353356207,1.487338,118090.0,118080.0,1.14446101]
[1753353356506,0.822647,118090.0,118080.0,1.31374641]
[1753353356708,1.608638,118090.0,118080.0,1.60022732]
[1753353357095,1.608638,118090.0,118080.0,1.59922732]
[1753353358409,1.608638,118090.0,118080.0,1.31512641]
[1753353358802,0.452647,118090.0,118080.0,1.59922732]
[1753353359108,1.399207,118090.0,118080.0,1.59922732]
[1753353360111,1.5684781,118090.0,118080.0,1.59922732]
[1753353360310,1.399207,118090.0,118080.0,1.59922732]
[1753353360605,1.399207,118090.0,118080.0,1.0310255]
[1753353360804,1.580509,118090.0,118080.0,1.59922732]
[1753353361206,1.580469,118090.0,118080.0,1.59922732]
[1753353362015,1.580469,118090.0,118080.0,1.31512641]
[1753353362808,1.580469,118090.0,118080.0,1.31893641]
[1753353363003,1.580469,118090.0,118080.0,1.31555641]
[1753353363506,1.580469,118090.0,118080.0,1.31893641]
[1753353366620,1.580469,118090.0,118080.0,1.0314555]
[1753353366919,1.580469,118090.0,118080.0,1.31555641]
[1753353367818,1.653789,118090.0,118080.0,1.31555641]
[1753353368919,1.8230601,118090.0,118080.0,1.0276455]
[1753353369120,1.8230601,118090.0,118080.0,1.31174641]
[1753353369615,1.8230601,118090.0,118080.0,0.9050755]
[1753353369922,1.8230601,118090.0,118080.0,0.6625855]
[1753353370120,1.8230601,118090.0,118080.0,0.94668641]
[1753353371017,1.8230601,118090.0,118080.0,0.4933001]
[1753353371222,1.8230601,118090.0,118080.0,0.6625854]
[1753353371921,1.84189418,118090.0,118080.0,0.6625854]
[1753353372119,2.20269418,118090.0,118080.0,0.94668631]
[1753353372822,1.84189418,118090.0,118080.0,0.94668631]
[1753353373026,2.20269418,118090.0,118080.0,0.94668631]
[1753353375030,2.20269418,118090.0,118080.0,0.6625854]
[1753353375220,2.20269418,118090.0,118080.0,0.94668631]
[1753353376122,1.84189418,118090.0,118080.0,0.94668631]
[1753353376527,2.20269418,118090.0,118080.0,0.94668631]
[1753353376824,1.84189418,118090.0,118080.0,0.94668631]
[1753353377419,2.20269418,118090.0,118080.0,0.94828631]
[1753353378831,1.84189418,118090.0,118080.0,0.94828631]
[1753353380637,1.8230601,118090.0,118080.0,0.94828631]
[1753353380814,1.8230601,118090.0,118080.0,0.94846631]
[1753353381635,1.8230601,118090.0,118080.0,0.6643654]
[1753353381829,1.8230601,118090.0,118080.0,0.94846631]
[1753353382024,1.8230601,118090.0,118080.0,0.6643654]
[1753353382224,1.8230601,118090.0,118080.0,0.94846631]
[1753353382423,1.8230601,118090.0,118080.0,0.94668631]
[1753353382727,2.20267324,118090.0,118080.0,0.77740101]
[1753353383229,1.84187324,118090.0,118080.0,0.94668631]
[1753353383531,1.8230601,118090.0,118080.0,0.94668631]
[1753353384033,1.8230601,118090.0,118080.0,0.6625854]
[1753353384233,1.8230601,118090.0,118080.0,0.94668631]
[1753353387634,2.61307838,118090.0,118080.0,0.3749901]
[1753353387836,2.61307838,118090.0,118080.0,0.4967801]
[1753353388031,2.32897747,118090.0,118080.0,0.4967801]
[1753353389433,2.32897747,118090.0,118080.0,0.95176631]
[1753353389434,1.79890637,118090.0,118080.0,0.95176631]
[1753353389935,1.79778637,118090.0,118080.0,0.95176631]
[1753353390136,1.72446637,118090.0,118080.0,1.31256631]
[1753353390339,1.72446637,118090.0,118080.0,1.59666722]
[1753353390532,1.72446637,118090.0,118080.0,1.59766722]
[1753353390930,1.19065165,118090.0,118080.0,1.61497086]
[1753353391133,1.56065165,118090.0,118080.0,1.04676904]
[1753353391330,1.56065165,118090.0,118080.0,1.61497086]
[1753353391531,1.551839,118090.0,118080.0,1.61497086]
[1753353391732,1.57064738,118090.0,118080.0,1.61497086]
[1753353392131,1.19064738,118090.0,118080.0,1.61497086]
[1753353392433,1.501839,118090.0,118080.0,1.61497086]
[1753353392736,0.566439,118090.0,118080.0,2.22033086]
[1753353393433,0.936439,118090.0,118080.0,2.22033086]
[1753353393829,0.566439,118090.0,118080.0,2.22033086]
[1753353394034,0.472439,118090.0,118080.0,2.22033086]
[1753353394743,0.922169,118090.0,118080.0,2.22033086]
[1753353394938,0.932169,118090.0,118080.0,2.22033086]
[1753353395533,0.932169,118090.0,118080.0,1.04676904]
[1753353395736,0.932169,118090.0,118080.0,2.20282722]
[1753353396135,0.978139,118090.0,118080.0,1.91872631]
[1753353396335,1.14741,118090.0,118080.0,1.91872631]
[1753353396534,1.14741,118090.0,118080.0,1.0294654]
[1753353396732,1.14741,118090.0,118080.0,1.6345854]
[1753353396936,1.14741,118090.0,118080.0,1.91868631]
[1753353397133,1.16741,118090.0,118080.0,1.91868631]
[1753353397341,0.998139,118090.0,118080.0,1.91868631]
[1753353397735,0.998139,118090.0,118080.0,1.6345854]
[1753353397937,0.618139,118090.0,118080.0,2.20278722]
[1753353398137,0.978139,118090.0,118080.0,2.20278722]
[1753353398842,0.978139,118090.0,118080.0,1.59766722]
[1753353399039,0.978139,118090.0,118080.0,1.91856631]
[1753353399237,0.978139,118090.0,118080.0,1.31356631]
[1753353399439,0.978139,118090.0,118080.0,1.91856631]
[1753353399941,0.86092,118090.0,118080.0,0.4983801]
[1753353400245,1.22092,118090.0,118080.0,0.95176631]
[1753353400536,1.22934187,118090.0,118080.0,0.95176631]
[1753353400740,1.22934187,118090.0,118080.0,0.4967801]
[1753353400944,1.60895448,118090.0,118080.0,0.6660654]
[1753353401134,1.89305539,118090.0,118080.0,0.5917654]
[1753353401330,1.89305539,118090.0,118080.0,0.6660654]
[1753353401536,1.60895448,118090.0,118080.0,0.6660654]
[1753353403744,1.43968348,118090.0,118080.0,0.6660654]
[1753353404538,2.04452348,118090.0,118080.0,0.6660654]
[1753353404845,1.43968348,118090.0,118080.0,0.6660654]
[1753353405044,2.04452348,118090.0,118080.0,0.6660654]
[1753353405948,2.04448348,118090.0,118080.0,0.6660654]
[1753353406444,1.68368348,118090.0,118080.0,0.6660654]
[1753353406646,1.07888348,118090.0,118080.0,0.95176631]
[1753353406845,1.68364348,118090.0,118080.0,0.95176631]
[1753353407751,1.68364348,118090.0,118080.0,0.6676654]
[1753353407947,1.66483087,118090.0,118080.0,0.95176631]
[1753353408948,1.83410187,118090.0,118080.0,0.95176631]
[1753353409947,1.83410187,118090.0,118080.0,0.6676654]
[1753353410153,1.83410187,118090.0,118080.0,0.78248101]
[1753353410853,1.83410187,118090.0,118080.0,0.95176631]
[1753353411057,1.83410187,118090.0,118080.0,0.65909101]
[1753353411350,1.83410187,118090.0,118080.0,0.73339101]
[1753353411552,1.83410187,118090.0,118080.0,0.78088101]
[1753353411753,1.83410187,118090.0,118080.0,0.4967801]
[1753353412058,1.83410187,118090.0,118080.0,0.95016631]
[1753353412552,1.83410187,118090.0,118080.0,0.5442754]
[1753353412757,2.49766201,118090.0,118080.0,0.3749901]
[1753353413456,2.2135611,118090.0,118080.0,0.3749901]
[1753353414055,2.2135611,118090.0,118080.0,0.73339101]
[1753353414558,2.2133611,118090.0,118080.0,0.4492901]
[1753353415352,2.2133611,118090.0,118080.0,0.3749901]
[1753353418558,2.49746201,118090.0,118080.0,0.3749901]
[1753353419163,2.2133611,118090.0,118080.0,0.3749901]
[1753353420351,2.2131611,118090.0,118080.0,0.4219101]
[1753353420661,2.2131611,118090.0,118080.0,0.4943901]
[1753353422170,2.2131611,118090.0,118080.0,0.4219101]
[1753353422363,2.2131611,118090.0,118080.0,0.3749901]
[1753353423167,2.2131611,118090.0,118080.0,0.4943901]
[1753353427372,2.2131611,118090.0,118080.0,0.4219101]
[1753353428172,2.2131611,118090.0,118080.0,0.4943901]
[1753353429179,2.2131611,118090.0,118080.0,0.3749901]
[1753353430275,2.62441226,118090.0,118080.0,0.3749901]
[1753353431371,2.34031135,118090.0,118080.0,0.3749901]
[1753353431664,2.62441226,118090.0,118080.0,0.3749901]
[1753353434972,2.34031135,118090.0,118080.0,0.3749901]
[1753353435170,2.62441226,118090.0,118080.0,0.3749901]
[1753353442869,2.62441226,118090.0,118080.0,0.27529925]
[1753353443076,0.3066196,118070.0,118060.0,0.0796849]
[1753353443381,2.09746051,118070.0,118060.0,0.1266049]
[1753353443577,2.09746051,118070.0,118060.0,0.3183249]
[1753353443777,2.11609595,118070.0,118060.0,0.3183249]
[1753353444779,2.11709595,118070.0,118060.0,0.3667449]
[1753353445282,2.44266495,118070.0,118060.0,0.3667449]
[1753353445677,2.44266495,118070.0,118060.0,0.3677449]
[1753353446782,2.15856404,118070.0,118060.0,0.3677449]
[1753353447082,2.44266495,118070.0,118060.0,0.0112049]
[1753353447282,2.56986764,118070.0,118060.0,0.0112049]
[1753353448280,2.93066764,118070.0,118060.0,0.0112049]
[1753353451885,2.64656673,118070.0,118060.0,0.0112049]
[1753353452181,2.93066764,118070.0,118060.0,0.0112049]
[1753353452685,2.93066764,118070.0,118060.0,0.0822749]
[1753353453480,2.56986764,118070.0,118060.0,0.3262749]
[1753353453685,2.56986764,118070.0,118060.0,0.0112049]
[1753353457287,2.28576673,118070.0,118060.0,0.0112049]
[1753353457480,2.56986764,118070.0,118060.0,0.0112049]
[1753353458288,2.28576673,118070.0,118060.0,0.0112049]
[1753353458586,2.56986764,118070.0,118060.0,0.0112049]
[1753353459491,1.68208673,118070.0,118060.0,0.0112049]
[1753353459690,2.28536673,118070.0,118060.0,0.0112049]
[1753353459890,2.28536673,118070.0,118060.0,0.65561581]
[1753353460288,2.28536673,118070.0,118060.0,0.61037581]
[1753353460477,2.28536673,118070.0,118060.0,0.0822749]
[1753353460682,2.28536673,118070.0,118060.0,0.0112049]
[1753353460881,2.56946764,118070.0,118060.0,0.0112049]
[1753353461588,2.56946764,118070.0,118060.0,0.1320649]
[1753353461789,2.56946764,118070.0,118060.0,0.2315749]
[1753353461992,2.28536673,118070.0,118060.0,0.2315749]
[1753353462578,0.52917444,118070.0,118060.0,1.26572971]
[1753353462885,0.372809,118070.0,118060.0,1.18572971]
[1753353463392,0.742809,118070.0,118060.0,1.18572971]
[1753353463986,0.666569,118070.0,118060.0,1.18572971]
[1753353464192,0.666569,118070.0,118060.0,0.9016288]
[1753353464385,0.666569,118070.0,118060.0,1.18572971]
[1753353464586,0.326569,118070.0,118060.0,1.18572971]
[1753353464786,0.646569,118070.0,118060.0,1.18572971]
[1753353464986,0.696279,118070.0,118060.0,1.18572971]
[1753353465187,0.726279,118070.0,118060.0,1.18572971]
[1753353465388,0.8955786,118070.0,118060.0,1.18572971]
[1753353465584,0.4958686,118070.0,118060.0,1.18572971]
[1753353465789,0.8458686,118070.0,118060.0,1.78888971]
[1753353466583,0.4958686,118070.0,118060.0,1.78888971]
[1753353466789,0.326569,118070.0,118060.0,1.78888971]
[1753353467192,0.54765797,118090.0,118080.0,0.5295953]
[1753353467389,1.44480984,118090.0,118080.0,0.5295953]
[1753353467583,1.42609277,118090.0,118080.0,0.81369621]
[1753353467895,1.49704277,118090.0,118080.0,0.81369621]
[1753353468095,1.49704287,118090.0,118080.0,0.81369621]
[1753353468495,1.32877187,118090.0,118080.0,0.81469621]
[1753353470298,1.65434087,118090.0,118080.0,0.81469621]
[1753353470797,1.645919,118090.0,118080.0,0.81469621]
[1753353478309,1.574969,118090.0,118080.0,0.81469621]
[1753353478496,0.971889,118090.0,118080.0,1.09879712]
[1753353478696,1.534689,118090.0,118080.0,1.09879712]
[1753353479203,1.214689,118090.0,118080.0,1.09879712]
[1753353479404,0.326569,118090.0,118080.0,1.45959712]
[1753353479601,0.666569,118090.0,118080.0,1.45959712]
[1753353479994,0.744029,118090.0,118080.0,1.45959712]
[1753353480196,0.953729,118090.0,118080.0,0.8913953]
[1753353480396,1.023259,118090.0,118080.0,1.77825621]
[1753353480797,1.053259,118090.0,118080.0,1.77825621]
[1753353481603,0.983729,118090.0,118080.0,1.77825621]
[1753353482595,0.983729,118090.0,118080.0,2.06235712]
[1753353483199,0.774029,118090.0,118080.0,2.06235712]
[1753353483607,0.724029,118090.0,118080.0,2.06235712]
[1753353483905,0.503789,118090.0,118080.0,2.06235712]
[1753353484098,0.326569,118090.0,118080.0,2.06235712]
[1753353485205,0.04609,118100.0,118090.0,0.530641]
[1753353485408,0.06953,118110.0,118090.0,0.530641]
[1753353485409,0.23883,118110.0,118100.0,0.5306266]
[1753353485606,0.31883,118110.0,118100.0,1.77820751]
[1753353485908,0.9576573,118120.0,118110.0,0.5306123]
[1753353486105,1.2676573,118120.0,118110.0,1.17551321]
[1753353486716,1.2193273,118120.0,118110.0,1.17551321]
[1753353486914,0.6649773,118120.0,118110.0,1.17551321]
[1753353487116,0.6649773,118120.0,118110.0,1.77815321]
[1753353487306,0.3549773,118120.0,118110.0,1.77815321]
[1753353487607,0.71749,118130.0,118120.0,0.530598]
[1753353487915,0.04609,118130.0,118120.0,1.45959982]
[1753353488408,0.24107,118140.0,118130.0,0.3108236]
[1753353488714,0.66716,118140.0,118130.0,1.4965436]
[1753353488911,0.66716,118140.0,118130.0,1.78064451]
[1753353489102,0.81071642,118160.0,118150.0,0.530555]
[1753353489308,1.28759892,118160.0,118150.0,0.81465591]
[1753353489508,1.85014622,118160.0,118150.0,0.81465591]
[1753353490016,1.74879326,118160.0,118150.0,0.81465591]
[1753353490403,2.07436226,118160.0,118150.0,0.530555]
[1753353490608,2.24853296,118160.0,118150.0,0.52626591]
[1753353490809,2.24853296,118160.0,118150.0,0.169185]
[1753353491110,2.07936226,118160.0,118150.0,0.45328591]
[1753353491310,2.07936226,118160.0,118150.0,0.70492591]
[1753353491615,2.07936226,118160.0,118150.0,0.81465591]
[1753353495417,2.07936226,118160.0,118150.0,0.530555]
[1753353495819,2.07936226,118160.0,118150.0,0.81465591]
[1753353496230,2.07936226,118160.0,118150.0,0.530555]
[1753353496519,2.08536226,118160.0,118150.0,0.76942591]
[1753353497422,2.25453296,118160.0,118150.0,0.76942591]
[1753353497620,2.25453296,118160.0,118150.0,0.81565591]
[1753353498018,2.08536226,118160.0,118150.0,0.81565591]
[1753353498419,2.25453296,118160.0,118150.0,0.81565591]
[1753353500724,2.25453296,118160.0,118150.0,0.76942591]
[1753353501228,1.355729,118160.0,118150.0,0.81565591]
[1753353501418,2.1304597,118160.0,118150.0,0.66887591]
[1753353501618,2.1304597,118160.0,118150.0,0.63677591]
[1753353501922,2.13903385,118160.0,118150.0,0.63677591]
[1753353502224,2.13903385,118160.0,118150.0,0.76942591]
[1753353502423,2.12803385,118160.0,118150.0,0.76842591]
[1753353502625,2.13203385,118160.0,118150.0,0.76842591]
[1753353502826,1.59756323,118160.0,118150.0,0.76942591]
[1753353503025,2.20324323,118160.0,118150.0,0.76942591]
[1753353503223,2.20324323,118160.0,118150.0,0.001]
[1753353503428,2.63267436,118160.0,118150.0,0.001]
[1753353504028,2.34857345,118160.0,118150.0,0.001]
[1753353504232,2.63267436,118160.0,118150.0,0.001]
[1753353504529,2.34861345,118160.0,118150.0,0.28510091]
[1753353505230,2.34861345,118160.0,118150.0,0.001]
[1753353505527,1.74289345,118160.0,118150.0,0.76942591]
[1753353505725,2.34857345,118160.0,118150.0,0.531555]
[1753353506229,2.34857345,118160.0,118150.0,0.60024091]
[1753353506430,1.5651486,118160.0,118150.0,0.81565591]
[1753353506727,2.04426298,118160.0,118150.0,0.81565591]
[1753353506926,0.473639,118160.0,118150.0,1.46055682]
[1753353507116,0.732029,118160.0,118150.0,1.46055682]
[1753353507317,0.828989,118160.0,118150.0,1.17645591]
[1753353507726,0.508989,118160.0,118150.0,1.17645591]
[1753353507924,0.888989,118160.0,118150.0,1.17645591]
[1753353508129,1.495669,118160.0,118150.0,1.17645591]
[1753353509233,1.107669,118160.0,118150.0,1.17645591]
[1753353509428,1.447669,118160.0,118150.0,1.17645591]
[1753353509630,1.107669,118160.0,118150.0,1.17645591]
[1753353509825,1.417669,118160.0,118150.0,1.17645591]
[1753353510229,1.5868397,118160.0,118150.0,1.17645591]
[1753353511124,0.9801597,118160.0,118150.0,1.46055682]
[1753353511428,0.9801597,118160.0,118150.0,1.17645591]
[1753353511621,0.6701597,118160.0,118150.0,1.17645591]
[1753353511826,0.5731997,118160.0,118150.0,1.17645591]
[1753353512026,0.404029,118160.0,118150.0,1.17645591]
[1753353512522,0.326569,118160.0,118150.0,1.46055682]